[Event "Titled Tuesday Blitz June 21 Early 2022"]
[White "Migot, Tangi"]
[Black "Wagner, Dennis"]
[WhiteFideId "662445"]
[BlackFideId "24650684"]
[WhiteElo "2514"]
[BlackElo "2355"]
[Result "0-1"]
[Round "07"]
[TimeControl "180+1"]
[Date "2022.06.21"]
[WhiteClock "0:00:06"]
[BlackClock "0:00:08"]

1. d4 {[%clk 0:03:00]}  Nf6 {[%clk 0:02:59]} 2. c4 {[%clk 0:03:01]}  g6 {[%clk 0:02:59]} 3. Nc3 {[%clk 0:03:01]}  d5 {[%clk 0:03:00]} 4. cxd5 {[%clk 0:03:01]}  Nxd5 {[%clk 0:03:01]} 5. e4 {[%clk 0:03:00]}  Nxc3 {[%clk 0:03:01]} 6. bxc3 {[%clk 0:03:00]}  Bg7 {[%clk 0:03:02]} 7. Qa4+ {[%clk 0:02:59]}  Nd7 {[%clk 0:03:00]} 8. Ba3 {[%clk 0:02:58]}  O-O {[%clk 0:02:59]} 9. Rd1 {[%clk 0:02:58]}  b6 {[%clk 0:02:49]} 10. Nf3 {[%clk 0:02:57]}  Bb7 {[%clk 0:02:49]} 11. Bd3 {[%clk 0:02:57]}  Nf6 {[%clk 0:02:50]} 12. Qc2 {[%clk 0:02:55]}  c5 {[%clk 0:02:46]} 13. Qe2 {[%clk 0:02:52]}  Qc7 {[%clk 0:02:43]} 14. O-O {[%clk 0:02:44]}  e6 {[%clk 0:02:40]} 15. Qe3 {[%clk 0:02:23]}  Rfd8 {[%clk 0:02:33]} 16. Rfe1 {[%clk 0:02:06]}  Rac8 {[%clk 0:02:30]} 17. dxc5 {[%clk 0:01:35]}  bxc5 {[%clk 0:02:06]} 18. Bb1 {[%clk 0:01:35]}  Rxd1 {[%clk 0:02:03]} 19. Rxd1 {[%clk 0:01:36]}  Ng4 {[%clk 0:02:03]} 20. Qg5 {[%clk 0:01:31]}  Ne5 {[%clk 0:02:01]} 21. Nxe5 {[%clk 0:01:30]}  Bxe5 {[%clk 0:02:02]} 22. h4 {[%clk 0:01:14]}  Bxc3 {[%clk 0:02:00]} 23. h5 {[%clk 0:01:10]}  Bd4 {[%clk 0:02:00]} 24. Rxd4 {[%clk 0:00:53]}  cxd4 {[%clk 0:01:59]} 25. Qf6 {[%clk 0:00:50]}  Qd8 {[%clk 0:00:49]} 26. Be7 {[%clk 0:00:45]}  Qa5 {[%clk 0:00:40]} 27. g4 {[%clk 0:00:13]}  Qe1+ {[%clk 0:00:35]} 28. Kh2 {[%clk 0:00:11]}  Rc1 {[%clk 0:00:22]} 29. Ba3 {[%clk 0:00:08]}  Qh1+ {[%clk 0:00:12]} 30. Kg3 {[%clk 0:00:08]}  Rg1+ {[%clk 0:00:11]} 31. Kf4 {[%clk 0:00:08]}  Qh2+ {[%clk 0:00:08]} 32. Kg5 {[%clk 0:00:07]}  Qxh5+ {[%clk 0:00:08]} 33. Kf4 {[%clk 0:00:06]}  Rxg4+ {[%clk 0:00:08]} 34. Kf3 {[%clk 0:00:06]}  Rxe4+ {[%clk 0:00:08]} 35. Kg3 {[%clk 0:00:06]}  Rg4# {[%clk 0:00:08]} 0-1


[Site "https://www.chess.com"]

[Event "Titled Tuesday Blitz June 21 Early 2022"]
[White "Mirzoev, Azer"]
[Black "Toncheva, Nadya"]
[WhiteFideId "13400304"]
[BlackFideId "2924056"]
[WhiteElo "2525"]
[BlackElo "1888"]
[Result "1-0"]
[Round "07"]
[TimeControl "180+1"]
[Date "2022.06.22"]
[WhiteClock "0:00:11"]
[BlackClock "0:00:04"]

1. c4 {[%clk 0:02:59]}  Nf6 {[%clk 0:02:39]} 2. Nc3 {[%clk 0:02:56]}  g6 {[%clk 0:02:37]} 3. d4 {[%clk 0:02:57]}  Bg7 {[%clk 0:02:37]} 4. e4 {[%clk 0:02:58]}  d6 {[%clk 0:02:37]} 5. f3 {[%clk 0:02:58]}  O-O {[%clk 0:02:34]} 6. Bg5 {[%clk 0:02:58]}  c6 {[%clk 0:02:22]} 7. Qd2 {[%clk 0:02:56]}  Qc7 {[%clk 0:02:22]} 8. Nge2 {[%clk 0:02:54]}  e5 {[%clk 0:02:22]} 9. O-O-O {[%clk 0:02:48]}  a6 {[%clk 0:02:16]} 10. Kb1 {[%clk 0:02:46]}  b5 {[%clk 0:02:17]} 11. dxe5 {[%clk 0:02:39]}  dxe5 {[%clk 0:02:15]} 12. Qd6 {[%clk 0:02:39]}  Qxd6 {[%clk 0:02:05]} 13. Rxd6 {[%clk 0:02:40]}  Nfd7 {[%clk 0:01:56]} 14. Nc1 {[%clk 0:02:41]}  Re8 {[%clk 0:01:44]} 15. Nb3 {[%clk 0:02:36]}  Bf8 {[%clk 0:01:38]} 16. Rd1 {[%clk 0:02:35]}  Nc5 {[%clk 0:01:25]} 17. Na5 {[%clk 0:02:12]}  Ne6 {[%clk 0:00:55]} 18. Be3 {[%clk 0:02:12]}  Bb4 {[%clk 0:00:53]} 19. Nb3 {[%clk 0:02:11]}  Nd7 {[%clk 0:00:50]} 20. a3 {[%clk 0:02:04]}  Bxc3 {[%clk 0:00:39]} 21. bxc3 {[%clk 0:02:05]}  Kf8 {[%clk 0:00:26]} 22. a4 {[%clk 0:02:02]}  bxa4 {[%clk 0:00:24]} 23. Na5 {[%clk 0:01:59]}  Rb8+ {[%clk 0:00:16]} 24. Ka2 {[%clk 0:01:59]}  Bb7 {[%clk 0:00:11]} 25. g3 {[%clk 0:01:54]}  Ke7 {[%clk 0:00:10]} 26. h4 {[%clk 0:01:50]}  Ndc5 {[%clk 0:00:07]} 27. Bh3 {[%clk 0:01:45]}  Ba8 {[%clk 0:00:06]} 28. Ka3 {[%clk 0:01:39]}  Red8 {[%clk 0:00:05]} 29. Bxe6 {[%clk 0:01:05]}  Nxe6 {[%clk 0:00:04]} 30. c5 {[%clk 0:01:01]}  f5 {[%clk 0:00:04]} 31. Kxa4 {[%clk 0:00:56]}  Rb5 {[%clk 0:00:04]} 32. Rxd8 {[%clk 0:00:53]}  Kxd8 {[%clk 0:00:04]} 33. Nb3 {[%clk 0:00:52]}  Ke7 {[%clk 0:00:04]} 34. h5 {[%clk 0:00:49]}  Rb8 {[%clk 0:00:02]} 35. hxg6 {[%clk 0:00:48]}  hxg6 {[%clk 0:00:03]} 36. Rh7+ {[%clk 0:00:45]}  Kf6 {[%clk 0:00:04]} 37. Na5 {[%clk 0:00:38]}  Rd8 {[%clk 0:00:04]} 38. Ra7 {[%clk 0:00:33]}  g5 {[%clk 0:00:04]} 39. exf5 {[%clk 0:00:32]}  Kxf5 {[%clk 0:00:04]} 40. g4+ {[%clk 0:00:32]}  Kf6 {[%clk 0:00:04]} 41. Nc4 {[%clk 0:00:31]}  Nf8 {[%clk 0:00:03]} 42. Nd6 {[%clk 0:00:29]}  Ne6 {[%clk 0:00:03]} 43. Ka5 {[%clk 0:00:24]}  Nf4 {[%clk 0:00:03]} 44. Bxf4 {[%clk 0:00:21]}  gxf4 {[%clk 0:00:04]} 45. Kxa6 {[%clk 0:00:20]}  Ke6 {[%clk 0:00:04]} 46. c4 {[%clk 0:00:18]}  Kf6 {[%clk 0:00:03]} 47. Kb6 {[%clk 0:00:18]}  Ke6 {[%clk 0:00:03]} 48. g5 {[%clk 0:00:16]}  Rb8+ {[%clk 0:00:03]} 49. Kc7 {[%clk 0:00:15]}  Rg8 {[%clk 0:00:03]} 50. Ne4 {[%clk 0:00:12]}  Rg7+ {[%clk 0:00:02]} 51. Kb6 {[%clk 0:00:12]}  Rg8 {[%clk 0:00:03]} 52. Rh7 {[%clk 0:00:11]}  Kf5 {[%clk 0:00:03]} 53. Rf7+ {[%clk 0:00:11]}  Kg6 {[%clk 0:00:04]} 54. Rf6+ {[%clk 0:00:11]}  Kh5 {[%clk 0:00:04]} 55. Rh6# {[%clk 0:00:11]} 1-0


[Site "https://www.chess.com"]

[Event "Titled Tuesday Blitz June 21 Early 2022"]
[White "Mitrovic, Darko R"]
[Black "Begunov, Konstantin"]
[WhiteFideId "927023"]
[BlackFideId "4118510"]
[WhiteElo "2150"]
[BlackElo "2262"]
[Result "1-0"]
[Round "07"]
[TimeControl "180+1"]
[Date "2022.06.22"]
[WhiteClock "0:00:06"]
[BlackClock "0:00:15"]

1. d4 {[%clk 0:03:00]}  d5 {[%clk 0:02:57]} 2. c4 {[%clk 0:03:00]}  c6 {[%clk 0:02:58]} 3. Nf3 {[%clk 0:02:58]}  Nf6 {[%clk 0:02:58]} 4. e3 {[%clk 0:02:58]}  a6 {[%clk 0:02:58]} 5. Nc3 {[%clk 0:02:44]}  Bg4 {[%clk 0:02:57]} 6. h3 {[%clk 0:02:42]}  Bxf3 {[%clk 0:02:54]} 7. Qxf3 {[%clk 0:02:41]}  e6 {[%clk 0:02:55]} 8. Bd3 {[%clk 0:02:30]}  Nbd7 {[%clk 0:02:54]} 9. O-O {[%clk 0:02:29]}  Bb4 {[%clk 0:02:52]} 10. Bd2 {[%clk 0:01:59]}  O-O {[%clk 0:02:51]} 11. a3 {[%clk 0:01:54]}  Ba5 {[%clk 0:02:51]} 12. b4 {[%clk 0:01:43]}  Bc7 {[%clk 0:02:51]} 13. e4 {[%clk 0:01:40]}  dxe4 {[%clk 0:02:47]} 14. Nxe4 {[%clk 0:01:39]}  Nxe4 {[%clk 0:02:46]} 15. Bxe4 {[%clk 0:01:37]}  Nf6 {[%clk 0:02:41]} 16. Be3 {[%clk 0:01:32]}  Qd6 {[%clk 0:02:32]} 17. g3 {[%clk 0:01:31]}  Nxe4 {[%clk 0:02:31]} 18. Qxe4 {[%clk 0:01:31]}  a5 {[%clk 0:02:27]} 19. c5 {[%clk 0:01:04]}  Qd7 {[%clk 0:02:08]} 20. b5 {[%clk 0:00:58]}  Qd5 {[%clk 0:01:02]} 21. Qxd5 {[%clk 0:00:55]}  exd5 {[%clk 0:01:02]} 22. a4 {[%clk 0:00:45]}  Rfe8 {[%clk 0:00:52]} 23. Rfe1 {[%clk 0:00:40]}  Kf8 {[%clk 0:00:51]} 24. Kg2 {[%clk 0:00:39]}  Bd8 {[%clk 0:00:43]} 25. Rab1 {[%clk 0:00:36]}  Bf6 {[%clk 0:00:38]} 26. bxc6 {[%clk 0:00:22]}  bxc6 {[%clk 0:00:38]} 27. Rb6 {[%clk 0:00:22]}  Bxd4 {[%clk 0:00:36]} 28. Rxc6 {[%clk 0:00:19]}  Bc3 {[%clk 0:00:33]} 29. Rd1 {[%clk 0:00:16]}  d4 {[%clk 0:00:34]} 30. Bxd4 {[%clk 0:00:12]}  Rad8 {[%clk 0:00:29]} 31. Rd6 {[%clk 0:00:11]}  Bb4 {[%clk 0:00:19]} 32. Rxd8 {[%clk 0:00:10]}  Rxd8 {[%clk 0:00:18]} 33. Bxg7+ {[%clk 0:00:10]}  Ke8 {[%clk 0:00:18]} 34. Rxd8+ {[%clk 0:00:10]}  Kxd8 {[%clk 0:00:19]} 35. Bd4 {[%clk 0:00:10]}  Kd7 {[%clk 0:00:18]} 36. Kf3 {[%clk 0:00:10]}  Ke6 {[%clk 0:00:17]} 37. Ke4 {[%clk 0:00:10]}  f5+ {[%clk 0:00:17]} 38. Kd3 {[%clk 0:00:09]}  Kd5 {[%clk 0:00:17]} 39. f3 {[%clk 0:00:09]}  h5 {[%clk 0:00:10]} 40. g4 {[%clk 0:00:08]}  fxg4 {[%clk 0:00:10]} 41. fxg4 {[%clk 0:00:08]}  hxg4 {[%clk 0:00:10]} 42. hxg4 {[%clk 0:00:08]}  Be1 {[%clk 0:00:08]} 43. g5 {[%clk 0:00:07]}  Ke6 {[%clk 0:00:08]} 44. g6 {[%clk 0:00:06]}  Bg3 {[%clk 0:00:07]} 45. g7 {[%clk 0:00:06]}  Kf7 {[%clk 0:00:07]} 46. Kc4 {[%clk 0:00:06]}  Bc7 {[%clk 0:00:06]} 47. Kb5 {[%clk 0:00:05]}  Bd8 {[%clk 0:00:07]} 48. c6 {[%clk 0:00:05]}  Bc7 {[%clk 0:00:07]} 49. Ka6 {[%clk 0:00:04]}  Kg8 {[%clk 0:00:07]} 50. Kb7 {[%clk 0:00:04]}  Be5 {[%clk 0:00:08]} 51. Bxe5 {[%clk 0:00:04]}  Kf7 {[%clk 0:00:08]} 52. Bc3 {[%clk 0:00:04]}  Kg8 {[%clk 0:00:08]} 53. Bxa5 {[%clk 0:00:04]}  Kf7 {[%clk 0:00:09]} 54. c7 {[%clk 0:00:05]}  Kg8 {[%clk 0:00:10]} 55. c8=Q+ {[%clk 0:00:05]}  Kh7 {[%clk 0:00:10]} 56. Qc7 {[%clk 0:00:05]}  Kg6 {[%clk 0:00:11]} 57. Qc6+ {[%clk 0:00:05]}  Kh7 {[%clk 0:00:11]} 58. g8=Q+ {[%clk 0:00:05]}  Kxg8 {[%clk 0:00:11]} 59. Qd7 {[%clk 0:00:05]}  Kf8 {[%clk 0:00:11]} 60. Kc6 {[%clk 0:00:05]}  Kg8 {[%clk 0:00:12]} 61. Kd6 {[%clk 0:00:06]}  Kf8 {[%clk 0:00:13]} 62. Ke6 {[%clk 0:00:06]}  Kg8 {[%clk 0:00:14]} 63. Kf6 {[%clk 0:00:06]}  Kh8 {[%clk 0:00:15]} 64. Qg7# {[%clk 0:00:06]} 1-0


[Site "https://www.chess.com"]

[Event "Titled Tuesday Blitz June 21 Early 2022"]
[White "Mrudul Dehankar"]
[Black "Rios Escobar, Adan"]
[WhiteFideId "25096990"]
[BlackFideId "3403645"]
[WhiteElo "1766"]
[BlackElo "2443"]
[Result "0-1"]
[Round "07"]
[TimeControl "180+1"]
[Date "2022.06.22"]
[WhiteClock "0:00:03"]
[BlackClock "0:00:16"]

1. e4 {[%clk 0:02:08]}  c5 {[%clk 0:02:58]} 2. Nf3 {[%clk 0:02:08]}  d6 {[%clk 0:02:58]} 3. d4 {[%clk 0:02:09]}  cxd4 {[%clk 0:02:59]} 4. Nxd4 {[%clk 0:02:09]}  Nf6 {[%clk 0:03:00]} 5. Nc3 {[%clk 0:02:10]}  a6 {[%clk 0:03:00]} 6. Bg5 {[%clk 0:02:10]}  Nbd7 {[%clk 0:03:00]} 7. f4 {[%clk 0:02:10]}  g6 {[%clk 0:02:56]} 8. Qf3 {[%clk 0:01:59]}  Bg7 {[%clk 0:02:57]} 9. O-O-O {[%clk 0:01:53]}  O-O {[%clk 0:02:51]} 10. Bc4 {[%clk 0:01:12]}  b5 {[%clk 0:02:38]} 11. Nc6 {[%clk 0:01:02]}  Qe8 {[%clk 0:02:38]} 12. Nd5 {[%clk 0:00:22]}  bxc4 {[%clk 0:02:32]} 13. Nc7 {[%clk 0:00:20]}  Nc5 {[%clk 0:02:27]} 14. Nxe8 {[%clk 0:00:14]}  Rxe8 {[%clk 0:02:22]} 15. Bxf6 {[%clk 0:00:10]}  Bxf6 {[%clk 0:02:19]} 16. e5 {[%clk 0:00:10]}  dxe5 {[%clk 0:02:10]} 17. Nxe7+ {[%clk 0:00:09]}  Bxe7 {[%clk 0:02:04]} 18. Qxa8 {[%clk 0:00:10]}  exf4 {[%clk 0:02:04]} 19. Qd5 {[%clk 0:00:09]}  Be6 {[%clk 0:01:59]} 20. Qf3 {[%clk 0:00:09]}  g5 {[%clk 0:01:40]} 21. h4 {[%clk 0:00:07]}  h6 {[%clk 0:01:36]} 22. hxg5 {[%clk 0:00:07]}  Bxg5 {[%clk 0:01:36]} 23. Rh5 {[%clk 0:00:06]}  Nd7 {[%clk 0:00:58]} 24. Qc6 {[%clk 0:00:05]}  Bg4 {[%clk 0:00:51]} 25. Rxg5+ {[%clk 0:00:05]}  hxg5 {[%clk 0:00:50]} 26. Rxd7 {[%clk 0:00:03]}  Re1+ {[%clk 0:00:50]} 27. Kd2 {[%clk 0:00:03]}  Rd1+ {[%clk 0:00:48]} 28. Kc3 {[%clk 0:00:03]}  Rxd7 {[%clk 0:00:42]} 29. Qf6 {[%clk 0:00:04]}  Rd5 {[%clk 0:00:30]} 30. Qxa6 {[%clk 0:00:04]}  Be6 {[%clk 0:00:29]} 31. Qa8+ {[%clk 0:00:04]}  Kg7 {[%clk 0:00:29]} 32. Qb8 {[%clk 0:00:04]}  Kf6 {[%clk 0:00:26]} 33. a4 {[%clk 0:00:04]}  Kf5 {[%clk 0:00:25]} 34. Qh8 {[%clk 0:00:02]}  g4 {[%clk 0:00:18]} 35. Qh7+ {[%clk 0:00:03]}  Ke5 {[%clk 0:00:16]} 36. Qe4+ {[%clk 0:00:03]}  Kxe4 {[%clk 0:00:16]} 0-1


[Site "https://www.chess.com"]

[Event "Titled Tuesday Blitz June 21 Early 2022"]
[White "Nasir, Zehn"]
[Black "Tan, Zhongyi"]
[WhiteFideId "2613239"]
[BlackFideId "8603642"]
[WhiteElo "1993"]
[BlackElo "2510"]
[Result "0-1"]
[Round "07"]
[TimeControl "180+1"]
[Date "2022.06.22"]
[WhiteClock "0:00:06"]
[BlackClock "0:00:14"]

1. e4 {[%clk 0:03:00]}  e5 {[%clk 0:02:59]} 2. Nf3 {[%clk 0:02:54]}  Nf6 {[%clk 0:02:59]} 3. Nc3 {[%clk 0:02:51]}  Nc6 {[%clk 0:02:58]} 4. d4 {[%clk 0:02:49]}  exd4 {[%clk 0:02:58]} 5. Nxd4 {[%clk 0:02:50]}  Bb4 {[%clk 0:02:58]} 6. Nxc6 {[%clk 0:02:50]}  bxc6 {[%clk 0:02:59]} 7. Bd3 {[%clk 0:02:51]}  O-O {[%clk 0:02:59]} 8. O-O {[%clk 0:02:50]}  d5 {[%clk 0:03:00]} 9. exd5 {[%clk 0:02:51]}  cxd5 {[%clk 0:03:01]} 10. h3 {[%clk 0:02:51]}  c6 {[%clk 0:03:01]} 11. Qf3 {[%clk 0:02:51]}  Re8 {[%clk 0:02:52]} 12. Bf4 {[%clk 0:02:49]}  Bd6 {[%clk 0:02:51]} 13. Ne2 {[%clk 0:02:49]}  Rb8 {[%clk 0:02:50]} 14. b3 {[%clk 0:02:49]}  Rb7 {[%clk 0:02:43]} 15. c4 {[%clk 0:02:44]}  Rbe7 {[%clk 0:02:40]} 16. Rad1 {[%clk 0:02:38]}  Rxe2 {[%clk 0:02:31]} 17. Bxd6 {[%clk 0:02:19]}  Rxa2 {[%clk 0:02:30]} 18. Bc5 {[%clk 0:02:09]}  Be6 {[%clk 0:02:18]} 19. Rfe1 {[%clk 0:01:59]}  Qb8 {[%clk 0:01:42]} 20. Bd4 {[%clk 0:01:48]}  Qd8 {[%clk 0:01:18]} 21. Bb1 {[%clk 0:01:41]}  Ra6 {[%clk 0:01:16]} 22. cxd5 {[%clk 0:01:25]}  cxd5 {[%clk 0:01:14]} 23. Bxf6 {[%clk 0:01:04]}  Qxf6 {[%clk 0:01:12]} 24. Qd3 {[%clk 0:01:05]}  Rb6 {[%clk 0:01:11]} 25. Qxh7+ {[%clk 0:01:04]}  Kf8 {[%clk 0:01:10]} 26. Rxd5 {[%clk 0:00:54]}  Rxb3 {[%clk 0:01:09]} 27. Rd7 {[%clk 0:00:40]}  g6 {[%clk 0:00:36]} 28. Rxa7 {[%clk 0:00:34]}  Rb4 {[%clk 0:00:34]} 29. Ba2 {[%clk 0:00:24]}  Rh4 {[%clk 0:00:27]} 30. Rxe6 {[%clk 0:00:07]}  Rxe6 {[%clk 0:00:22]} 31. Ra8+ {[%clk 0:00:06]}  Ke7 {[%clk 0:00:15]} 32. Qg8 {[%clk 0:00:05]}  Re1+ {[%clk 0:00:14]} 33. Kh2 {[%clk 0:00:05]}  Qf4+ {[%clk 0:00:14]} 34. g3 {[%clk 0:00:06]}  Qxf2# {[%clk 0:00:14]} 0-1


[Site "https://www.chess.com"]

[Event "Titled Tuesday Blitz June 21 Early 2022"]
[White "Navara, David"]
[Black "Molina, Roberto Junio Brito"]
[WhiteFideId "309095"]
[BlackFideId "2109450"]
[WhiteElo "2686"]
[BlackElo "2432"]
[Result "1-0"]
[Round "07"]
[TimeControl "180+1"]
[Date "2022.06.21"]
[WhiteClock "0:00:36"]
[BlackClock "0:00:32"]

1. d4 {[%clk 0:03:00]}  d5 {[%clk 0:02:59]} 2. c4 {[%clk 0:03:00]}  c6 {[%clk 0:02:59]} 3. Nc3 {[%clk 0:03:01]}  Nf6 {[%clk 0:02:59]} 4. e3 {[%clk 0:03:01]}  a6 {[%clk 0:02:58]} 5. Nf3 {[%clk 0:03:00]}  g6 {[%clk 0:02:55]} 6. Be2 {[%clk 0:02:54]}  Bg7 {[%clk 0:02:54]} 7. O-O {[%clk 0:02:54]}  O-O {[%clk 0:02:54]} 8. h3 {[%clk 0:02:54]}  b5 {[%clk 0:02:47]} 9. cxd5 {[%clk 0:02:36]}  cxd5 {[%clk 0:02:47]} 10. b4 {[%clk 0:02:35]}  Nc6 {[%clk 0:02:38]} 11. a4 {[%clk 0:02:35]}  Bb7 {[%clk 0:02:34]} 12. axb5 {[%clk 0:02:28]}  axb5 {[%clk 0:02:34]} 13. Rxa8 {[%clk 0:02:28]}  Qxa8 {[%clk 0:02:34]} 14. Qb3 {[%clk 0:02:28]}  e6 {[%clk 0:02:33]} 15. Bb2 {[%clk 0:02:10]}  Qb8 {[%clk 0:02:29]} 16. Bxb5 {[%clk 0:02:05]}  Rc8 {[%clk 0:02:27]} 17. Na4 {[%clk 0:01:57]}  Ne4 {[%clk 0:02:20]} 18. Nc5 {[%clk 0:01:34]}  Nd6 {[%clk 0:02:19]} 19. Bd3 {[%clk 0:01:31]}  Rc7 {[%clk 0:02:09]} 20. Ra1 {[%clk 0:01:21]}  Bc8 {[%clk 0:02:08]} 21. b5 {[%clk 0:01:22]}  Ne7 {[%clk 0:02:00]} 22. Ba3 {[%clk 0:01:05]}  Ra7 {[%clk 0:01:22]} 23. b6 {[%clk 0:01:00]}  Ra8 {[%clk 0:01:21]} 24. Rb1 {[%clk 0:00:42]}  Bf8 {[%clk 0:01:13]} 25. Ne5 {[%clk 0:00:37]}  Bd7 {[%clk 0:00:32]} 26. Nexd7 {[%clk 0:00:36]} 1-0


[Site "https://www.chess.com"]

[Event "Titled Tuesday Blitz June 21 Early 2022"]
[White "Oparin, Grigoriy"]
[Black "Bluebaum, Matthias"]
[WhiteFideId "24125890"]
[BlackFideId "24651516"]
[WhiteElo "2639"]
[BlackElo "2556"]
[Result "1-0"]
[Round "07"]
[TimeControl "180+1"]
[Date "2022.06.21"]
[WhiteClock "0:01:20"]
[BlackClock "0:00:05"]

1. d4 {[%clk 0:03:00]}  Nf6 {[%clk 0:02:59]} 2. c4 {[%clk 0:03:01]}  e6 {[%clk 0:02:59]} 3. Nf3 {[%clk 0:03:02]}  d5 {[%clk 0:03:00]} 4. g3 {[%clk 0:03:02]}  Bb4+ {[%clk 0:03:00]} 5. Bd2 {[%clk 0:03:02]}  a5 {[%clk 0:03:01]} 6. Bg2 {[%clk 0:03:02]}  O-O {[%clk 0:03:01]} 7. Qc2 {[%clk 0:03:01]}  c5 {[%clk 0:03:01]} 8. cxd5 {[%clk 0:03:00]}  cxd4 {[%clk 0:03:01]} 9. Nxd4 {[%clk 0:03:01]}  Qb6 {[%clk 0:03:01]} 10. e3 {[%clk 0:03:01]}  exd5 {[%clk 0:03:01]} 11. O-O {[%clk 0:03:01]}  Nc6 {[%clk 0:03:01]} 12. Nxc6 {[%clk 0:03:02]}  bxc6 {[%clk 0:03:02]} 13. Rc1 {[%clk 0:03:02]}  Rb8 {[%clk 0:03:02]} 14. b3 {[%clk 0:02:59]}  Bd7 {[%clk 0:02:55]} 15. Bxb4 {[%clk 0:02:57]}  axb4 {[%clk 0:02:51]} 16. Nd2 {[%clk 0:02:57]}  h5 {[%clk 0:02:49]} 17. a3 {[%clk 0:02:50]}  bxa3 {[%clk 0:02:49]} 18. Rxa3 {[%clk 0:02:51]}  h4 {[%clk 0:02:42]} 19. gxh4 {[%clk 0:02:49]}  Ra8 {[%clk 0:02:26]} 20. Rxa8 {[%clk 0:02:31]}  Rxa8 {[%clk 0:02:27]} 21. Nf3 {[%clk 0:02:31]}  Ra3 {[%clk 0:02:16]} 22. Ne5 {[%clk 0:02:17]}  Rxb3 {[%clk 0:01:48]} 23. Nxd7 {[%clk 0:02:15]}  Nxd7 {[%clk 0:01:49]} 24. Qxc6 {[%clk 0:02:15]}  Qxc6 {[%clk 0:01:45]} 25. Rxc6 {[%clk 0:02:16]}  Rb1+ {[%clk 0:01:46]} 26. Bf1 {[%clk 0:02:16]}  Ne5 {[%clk 0:01:42]} 27. Rc8+ {[%clk 0:02:16]}  Kh7 {[%clk 0:01:43]} 28. Kg2 {[%clk 0:02:17]}  Rb2 {[%clk 0:01:36]} 29. Kg3 {[%clk 0:02:07]}  Rd2 {[%clk 0:01:29]} 30. Rd8 {[%clk 0:02:01]}  Nc6 {[%clk 0:01:20]} 31. Rd7 {[%clk 0:02:01]}  Ne5 {[%clk 0:01:07]} 32. Rd6 {[%clk 0:02:01]}  Kg8 {[%clk 0:01:01]} 33. Bg2 {[%clk 0:01:58]}  d4 {[%clk 0:00:38]} 34. Rxd4 {[%clk 0:01:57]}  Rxd4 {[%clk 0:00:34]} 35. exd4 {[%clk 0:01:58]}  Nc4 {[%clk 0:00:35]} 36. Kf4 {[%clk 0:01:56]}  Kf8 {[%clk 0:00:35]} 37. h5 {[%clk 0:01:52]}  Ke7 {[%clk 0:00:36]} 38. Bd5 {[%clk 0:01:47]}  Nd6 {[%clk 0:00:36]} 39. Kg5 {[%clk 0:01:47]}  Nb5 {[%clk 0:00:35]} 40. h6 {[%clk 0:01:43]}  gxh6+ {[%clk 0:00:34]} 41. Kxh6 {[%clk 0:01:44]}  Kf6 {[%clk 0:00:32]} 42. h4 {[%clk 0:01:34]}  Nxd4 {[%clk 0:00:31]} 43. Be4 {[%clk 0:01:35]}  Ne6 {[%clk 0:00:24]} 44. h5 {[%clk 0:01:33]}  Nf4 {[%clk 0:00:25]} 45. f3 {[%clk 0:01:30]}  Ne6 {[%clk 0:00:19]} 46. Kh7 {[%clk 0:01:28]}  Ng5+ {[%clk 0:00:19]} 47. Kg8 {[%clk 0:01:28]}  Ke5 {[%clk 0:00:08]} 48. h6 {[%clk 0:01:26]}  f5 {[%clk 0:00:09]} 49. Bb7 {[%clk 0:01:22]}  Kf6 {[%clk 0:00:03]} 50. h7 {[%clk 0:01:22]}  Kg6 {[%clk 0:00:03]} 51. h8=Q {[%clk 0:01:22]}  Ne6 {[%clk 0:00:04]} 52. Bd5 {[%clk 0:01:21]}  Nf8 {[%clk 0:00:03]} 53. Qg7+ {[%clk 0:01:20]}  Kh5 {[%clk 0:00:04]} 54. Qxf8 {[%clk 0:01:20]}  Kh4 {[%clk 0:00:04]} 55. Qg7 {[%clk 0:01:20]}  f4 {[%clk 0:00:05]} 56. Qg4# {[%clk 0:01:20]} 1-0


[Site "https://www.chess.com"]

[Event "Titled Tuesday Blitz June 21 Early 2022"]
[White "Ovchinnikov, Vsevolod"]
[Black "Fier, Alexandr"]
[WhiteFideId "24176842"]
[BlackFideId "2107139"]
[WhiteElo "2376"]
[BlackElo "2571"]
[Result "0-1"]
[Round "07"]
[TimeControl "180+1"]
[Date "2022.06.21"]
[WhiteClock "0:00:02"]
[BlackClock "0:02:17"]

1. d4 {[%clk 0:03:00]}  Nf6 {[%clk 0:03:00]} 2. c4 {[%clk 0:03:01]}  c5 {[%clk 0:03:01]} 3. d5 {[%clk 0:03:01]}  e6 {[%clk 0:03:02]} 4. Nc3 {[%clk 0:03:01]}  exd5 {[%clk 0:03:03]} 5. cxd5 {[%clk 0:03:02]}  d6 {[%clk 0:03:04]} 6. Nf3 {[%clk 0:03:02]}  g6 {[%clk 0:03:04]} 7. Nd2 {[%clk 0:03:02]}  Bg7 {[%clk 0:03:05]} 8. e4 {[%clk 0:03:03]}  O-O {[%clk 0:03:05]} 9. Be2 {[%clk 0:03:03]}  Na6 {[%clk 0:03:05]} 10. O-O {[%clk 0:03:03]}  Nc7 {[%clk 0:03:06]} 11. a4 {[%clk 0:03:00]}  Re8 {[%clk 0:03:06]} 12. Qc2 {[%clk 0:02:59]}  b6 {[%clk 0:03:01]} 13. Nc4 {[%clk 0:02:23]}  Ba6 {[%clk 0:03:01]} 14. Bf4 {[%clk 0:02:23]}  Bxc4 {[%clk 0:03:00]} 15. Bxc4 {[%clk 0:02:24]}  Ng4 {[%clk 0:02:57]} 16. h3 {[%clk 0:02:20]}  Ne5 {[%clk 0:02:58]} 17. Be2 {[%clk 0:02:20]}  a6 {[%clk 0:02:59]} 18. Bh2 {[%clk 0:02:17]}  Rb8 {[%clk 0:02:58]} 19. Kh1 {[%clk 0:02:04]}  b5 {[%clk 0:02:54]} 20. axb5 {[%clk 0:02:05]}  axb5 {[%clk 0:02:55]} 21. Nd1 {[%clk 0:01:59]}  Nc4 {[%clk 0:02:50]} 22. Bxc4 {[%clk 0:01:52]}  bxc4 {[%clk 0:02:51]} 23. f3 {[%clk 0:01:48]}  Rb4 {[%clk 0:02:50]} 24. Ra2 {[%clk 0:01:41]}  Nb5 {[%clk 0:02:50]} 25. Ne3 {[%clk 0:01:35]}  Nd4 {[%clk 0:02:50]} 26. Qd1 {[%clk 0:01:28]}  Qg5 {[%clk 0:02:46]} 27. Nc2 {[%clk 0:01:27]}  Nxc2 {[%clk 0:02:40]} 28. Qxc2 {[%clk 0:01:28]}  Qf6 {[%clk 0:02:40]} 29. Rb1 {[%clk 0:01:04]}  Reb8 {[%clk 0:02:40]} 30. Bg3 {[%clk 0:00:12]}  c3 {[%clk 0:02:40]} 31. b3 {[%clk 0:00:08]}  c4 {[%clk 0:02:40]} 32. Ra3 {[%clk 0:00:09]}  Qd8 {[%clk 0:02:22]} 33. Kh2 {[%clk 0:00:06]}  Qc7 {[%clk 0:02:23]} 34. Bf4 {[%clk 0:00:04]}  Qc5 {[%clk 0:02:18]} 35. h4 {[%clk 0:00:03]}  Qb6 {[%clk 0:02:18]} 36. Qc1 {[%clk 0:00:01]}  cxb3 {[%clk 0:02:17]} 37. Be3 {[%clk 0:00:02]}  Qd8 {[%clk 0:02:17]} 0-1


[Site "https://www.chess.com"]